fUST/lending_fUST_20240910
["ID","MTS","AMOUNT","RATE_DAILY","PERIOD"]
[337699394,1725976246467,-504.93052161,0.00018691,2]
[337699395,1725976246477,-1245.61,0.00018691,2]
[337699396,1725976246487,-500.0,0.00018691,2]
[337699397,1725976246499,-500.0,0.00018691,2]
[337699398,1725976246509,-1003.63,0.00018691,2]
[337699399,1725976246518,-500.0,0.00018691,2]
[337699400,1725976246528,-677.39,0.00018691,2]
[337699401,1725976246537,-500.0,0.00018691,2]
[337699402,1725976246546,-500.0,0.00018691,2]
[337699403,1725976246556,-1239.39,0.00018691,2]
[337699404,1725976246568,-500.0,0.00018691,2]
[337699406,1725976246578,-500.0,0.00018691,2]
[337699407,1725976246588,-500.0,0.00018691,2]
[337699408,1725976246597,-500.0,0.00018691,2]
[337699409,1725976246606,-500.0,0.00018691,2]
[337699410,1725976246616,-872.0,0.00018691,2]
[337699411,1725976246626,-500.0,0.00018691,2]
[337699412,1725976246636,-500.0,0.00018691,2]
[337699413,1725976246648,-500.0,0.00018691,2]
[337699414,1725976246658,-500.0,0.00018691,2]
[337699415,1725976246668,-500.0,0.00018691,2]
[337699416,1725976246679,-1880.86,0.00018691,2]
[337699417,1725976246688,-1331.59,0.00018691,2]
[337699418,1725976246697,-500.0,0.00018691,2]
[337699419,1725976246707,-3690.11,0.00018691,2]
[337699420,1725976246716,-555.09600076,0.00018691,2]
[337699421,1725976246726,-500.0,0.00018691,2]
[337699422,1725976246736,-449.75899766,0.00018691,2]
[337699423,1725976246745,-500.0,0.00018691,2]
[337699424,1725976246756,-500.0,0.00018691,2]
[337699425,1725976246766,-716.73,0.00018691,2]
[337699426,1725976246776,-500.0,0.00018691,2]
[337699427,1725976246785,-388.6429923,0.00018691,2]
[337699428,1725976246795,-500.0,0.00018691,2]
[337699429,1725976246805,-1946.45,0.00018691,2]
[337699430,1725976246816,-500.0,0.00018691,2]
[337699431,1725976246826,-500.0,0.00018691,2]
[337699432,1725976246835,-1499.47,0.00018691,2]
[337699433,1725976246845,-500.0,0.00018691,2]
[337699434,1725976246854,-500.0,0.00018691,2]
[337699435,1725976246864,-500.0,0.00018691,2]
[337699436,1725976246874,-500.0,0.00018691,2]
[337699437,1725976246884,-2121.0,0.00018691,2]
[337699438,1725976246893,-703.81,0.00018691,2]
[337699439,1725976246903,-500.0,0.00018691,2]
[337699440,1725976246912,-500.0,0.00018691,2]
[337699441,1725976246922,-500.0,0.00018691,2]
[337699442,1725976246931,-500.0,0.00018691,2]
[337699443,1725976246940,-500.0,0.00018691,2]
[337699444,1725976246950,-500.0,0.00018691,2]
[337699445,1725976246959,-500.0,0.00018691,2]
[337699446,1725976246969,-587.4,0.00018691,2]
[337699447,1725976246978,-518.12,0.00018691,2]
[337699448,1725976246987,-500.0,0.00018691,2]
[337699449,1725976246997,-684.84,0.00018691,2]
[337699450,1725976247007,-500.0,0.00018691,2]
[337699451,1725976247016,-811.13,0.00018691,2]
[337699452,1725976247025,-1273.41,0.00018691,2]
[337699453,1725976247054,-502.31423615,0.00018691,2]
[337699454,1725976247066,-818.86,0.00018691,2]
[337699455,1725976247077,-884.31,0.00018691,2]
[337699456,1725976247088,-500.0,0.00018691,2]
[337699457,1725976247098,-151.0,0.00018691,2]
[337699458,1725976247109,-500.0,0.00018691,2]
[337699459,1725976247119,-500.0,0.00018691,2]
[337699460,1725976247129,-1041.68,0.00018691,2]
[337699461,1725976247139,-613.95911434,0.00018691,2]
[337699462,1725976247150,-501.87317101,0.00018691,2]
[337699463,1725976247162,-500.0,0.00018691,2]
[337699464,1725976247173,-555.47,0.00018691,2]
[337699465,1725976247183,-500.0,0.00018691,2]
[337699466,1725976247193,-1055.04,0.00018691,2]
[337699467,1725976247204,-503.52,0.00018691,2]
[337699468,1725976247214,-2650.97,0.00018691,2]
[337699469,1725976247224,-503.09148678,0.00018691,2]
[337699470,1725976247234,-500.0,0.00018691,2]
[337699471,1725976247245,-501.18030637,0.00018691,2]
[337699472,1725976247256,-500.0,0.00018691,2]
[337699473,1725976247268,-500.0,0.00018691,2]
[337699474,1725976247278,-1904.32,0.00018691,2]
[337699475,1725976247289,-662.43,0.00018691,2]
[337699476,1725976247301,-500.0,0.00018691,2]
[337699477,1725976247313,-4885.63,0.00018691,2]
[337699478,1725976247324,-563.74,0.00018691,2]
[337699479,1725976247337,-500.0,0.00018691,2]
[337699480,1725976247348,-500.0,0.00018691,2]
[337699481,1725976247359,-151.0,0.00018691,2]
[337699482,1725976247370,-563.909523,0.00018691,2]
[337699483,1725976247382,-172.66382,0.00018691,2]
[337699484,1725976247394,-563.909523,0.00018691,2]
[337699485,1725976247404,-563.909523,0.00018691,2]
[337699486,1725976247414,-563.909523,0.00018691,2]
[337699487,1725976247424,-563.909523,0.00018691,2]
[337699488,1725976247434,-232.90363017,0.00018691,2]
[337699489,1725976247444,-500.0,0.00018691,2]
[337699490,1725976247455,-500.0,0.00018691,2]
[337699491,1725976247465,-563.909523,0.00018691,2]
[337699492,1725976247474,-563.909523,0.00018691,2]
[337699493,1725976247484,-563.909523,0.00018691,2]
[337699494,1725976247495,-563.909523,0.00018691,2]
[337699495,1725976247507,-563.909515,0.00018691,2]
[337699496,1725976247516,-500.0,0.00018691,2]
[337699497,1725976247527,-151.0,0.00018691,2]
[337699498,1725976247538,-500.0,0.00018691,2]
[337699499,1725976247550,-151.0,0.00018691,2]
[337699500,1725976247559,-500.0,0.00018691,2]
[337699501,1725976247573,-151.0,0.00018691,2]
[337699502,1725976247583,-254.849472,0.00018691,2]
[337699503,1725976247592,-500.0,0.00018691,2]
[337699504,1725976247602,-500.0,0.00018691,2]
[337699505,1725976247612,-1264.35,0.00018691,2]
[337699506,1725976247624,-500.87890431,0.00018691,2]
[337699507,1725976247637,-500.0,0.00018691,2]
[337699508,1725976247655,-533.55,0.00018691,2]
[337699509,1725976247667,-289.122703,0.00018691,2]
[337699510,1725976247680,-289.122703,0.00018691,2]
[337699511,1725976247692,-289.122703,0.00018691,2]
[337699512,1725976247705,-289.122703,0.00018691,2]
[337699513,1725976247716,-289.122703,0.00018691,2]
[337699514,1725976247726,-528.47,0.00018691,2]
[337699515,1725976247737,-289.122703,0.00018691,2]
[337699516,1725976247749,-500.0,0.00018691,2]
[337699517,1725976247759,-289.122703,0.00018691,2]
[337699518,1725976247771,-289.122703,0.00018691,2]
[337699519,1725976247780,-289.122703,0.00018691,2]
[337699520,1725976247791,-289.122702,0.00018691,2]
[337699521,1725976247801,-7305.29,0.00018691,2]
[337699522,1725976247811,-500.0,0.00018691,2]
[337699523,1725976247821,-161.85674528,0.00018691,2]
[337699524,1725976247831,-500.0,0.00018691,2]
[337699525,1725976247841,-645.40423241,0.00018691,2]
[337699526,1725976247850,-500.0,0.00018691,2]
[337699527,1725976247861,-500.0,0.00018691,2]
[337699528,1725976247871,-592.91,0.00018691,2]
[337699529,1725976247881,-505.15761073,0.00018691,2]
[337699530,1725976247891,-500.0,0.00018691,2]
[337699531,1725976247900,-735.11,0.00018691,2]
[337699532,1725976247910,-1245.37,0.00018691,2]
[337699533,1725976247920,-500.0,0.00018691,2]
[337699534,1725976247931,-500.0,0.00018691,2]
[337699535,1725976247940,-1005.49,0.00018691,2]
[337699536,1725976247950,-684.91,0.00018691,2]
[337699537,1725976247960,-151.0,0.00018691,2]
[337699538,1725976247970,-151.0,0.00018691,2]
[337699539,1725976247980,-1662.09,0.00018691,2]
[337699540,1725976247990,-500.0,0.00018691,2]
[337699541,1725976248000,-500.0,0.00018691,2]
[337699542,1725976248010,-553.59,0.00018691,2]
[337699543,1725976248020,-1301.93,0.00018691,2]
[337699544,1725976248030,-500.0,0.00018691,2]
[337699545,1725976248040,-500.0,0.00018691,2]
[337699546,1725976248050,-500.0,0.00018691,2]
[337699547,1725976248060,-718.86,0.00018691,2]
[337699548,1725976248072,-502.95115596,0.00018691,2]
[337699549,1725976248082,-500.0,0.00018691,2]
[337699550,1725976248093,-500.0,0.00018691,2]
[337699551,1725976248104,-907.37,0.00018691,2]
[337699552,1725976248113,-696.39,0.00018691,2]
[337699553,1725976248124,-500.0,0.00018691,2]
[337699554,1725976248133,-500.0,0.00018691,2]
[337699555,1725976248143,-722.9,0.00018691,2]
[337699556,1725976248153,-500.0,0.00018691,2]
[337699557,1725976248163,-671.04,0.00018691,2]
[337699558,1725976248174,-500.0,0.00018691,2]
[337699559,1725976248184,-500.0,0.00018691,2]
[337699560,1725976248195,-658.92,0.00018691,2]
[337699561,1725976248206,-1327.55,0.00018691,2]
[337699562,1725976248216,-500.0,0.00018691,2]
[337699563,1725976248226,-607.75,0.00018691,2]
[337699564,1725976248236,-500.0,0.00018691,2]
[337699565,1725976248247,-548.91,0.00018691,2]
[337699566,1725976248257,-567.1,0.00018691,2]
[337699567,1725976248267,-196.82578599,0.00018691,2]
[337699568,1725976248280,-563.44972324,0.00018691,2]
[337699569,1725976248291,-500.0,0.00018691,2]
[337699570,1725976248301,-151.0,0.00018691,2]
[337699571,1725976248311,-283.10182136,0.00018691,2]
[337699572,1725976248323,-505.65509984,0.00018691,2]
[337699573,1725976248333,-762.04,0.00018691,2]
[337699574,1725976248342,-1868.77,0.00018691,2]
[337699575,1725976248351,-500.0,0.00018691,2]
[337699576,1725976248362,-803.33,0.00018691,2]
[337699577,1725976248373,-500.0,0.00018691,2]
[337699578,1725976248382,-500.0,0.00018691,2]
[337699579,1725976248394,-807.68,0.00018691,2]
[337699580,1725976248404,-1084.7,0.00018691,2]
[337699581,1725976248414,-742.67,0.00018691,2]
[337699582,1725976248425,-500.0,0.00018691,2]
[337699583,1725976248435,-500.0,0.00018691,2]
[337699584,1725976248445,-500.0,0.00018691,2]
[337699585,1725976248455,-551.64,0.00018691,2]
[337699586,1725976248466,-500.0,0.00018691,2]
[337699587,1725976248475,-596.80318251,0.00018691,2]
[337699588,1725976248485,-426.56517391,0.00018691,2]
[337699589,1725976248498,-1809.05,0.00018691,2]
[337699590,1725976248508,-500.0,0.00018691,2]
[337699591,1725976248518,-500.0,0.00018691,2]
[337699592,1725976248527,-500.0,0.00018691,2]
[337699593,1725976248538,-500.0,0.00018691,2]
[337699594,1725976248548,-500.0,0.00018691,2]
[337699595,1725976248557,-1164.51,0.00018691,2]
[337699596,1725976248568,-500.0,0.00018691,2]
[337699597,1725976248580,-500.0,0.00018691,2]
[337699598,1725976248590,-500.0,0.00018691,2]
[337699599,1725976248600,-1078.95,0.00018691,2]
[337699600,1725976248610,-500.0,0.00018691,2]
[337699601,1725976248619,-500.0,0.00018691,2]
[337699602,1725976248628,-500.0,0.00018691,2]
[337699603,1725976248639,-500.0,0.00018691,2]
[337699604,1725976248649,-1370.16,0.00018691,2]
[337699605,1725976248659,-500.0,0.00018691,2]
[337699606,1725976248669,-151.0,0.00018692,2]
[337699607,1725976248679,-151.0,0.00018692,2]
[337699608,1725976248689,-238.326154,0.00018692,2]
[337699609,1725976248699,-151.0,0.00018692,2]
[337699610,1725976248709,-151.0,0.00018692,2]
[337699611,1725976248719,-151.0,0.00018692,2]
[337699612,1725976248729,-166.587242,0.00018692,2]
[337699613,1725976248739,-500.0,0.00018692,2]
[337699614,1725976248748,-500.0,0.00018692,2]
[337699615,1725976248758,-500.0,0.00018692,2]
[337699616,1725976248768,-504.97861694,0.00018693,2]
[337699617,1725976248777,-500.0,0.00018693,2]
[337699618,1725976248787,-399.78250616,0.00018693,2]
[337699619,1725976248797,-519.88591458,0.00018693,2]
[337699620,1725976248806,-333.76089851,0.00018693,2]
[337699621,1725976248972,-500.0,0.00018693,2]
[337699622,1725976248996,-630.53331865,0.00018693,2]
[337699623,1725976249006,-500.0,0.00018693,2]
[337699624,1725976249015,-500.0,0.00018693,2]
[337699625,1725976249025,-307.55917204,0.00018693,2]
[337699626,1725976249036,-503.04682975,0.00018693,2]
[337699627,1725976249046,-500.0,0.00018693,2]
[337699628,1725976249056,-335.61789504,0.00018693,2]
[337699629,1725976249065,-500.0,0.00018693,2]
[337699630,1725976249076,-500.0,0.00018693,2]
[337699631,1725976249085,-297.853988,0.00018693,2]
[337699632,1725976249095,-500.0,0.00018693,2]
[337699633,1725976249104,-500.0,0.00018693,2]
[337699634,1725976249122,-400.44162261,0.00018694,2]
[337699635,1725976249134,-500.0,0.00018694,2]
[337699636,1725976249144,-500.0,0.00018694,2]
[337699637,1725976249155,-500.0,0.00018694,2]
[337699638,1725976249165,-500.0,0.00018694,2]
[337699639,1725976249175,-500.0,0.00018694,2]
[337699640,1725976249184,-500.0,0.00018694,2]
[337699641,1725976249195,-506.97547049,0.00018695,2]
[337699642,1725976249205,-831.7,0.00018695,2]
[337699643,1725976249215,-500.0,0.00018695,2]
[337699644,1725976249225,-547.62,0.00018695,2]
[337699645,1725976249236,-862.27,0.00018695,2]
[337699646,1725976249246,-500.0,0.00018695,2]
[337699647,1725976249256,-500.0,0.00018695,2]
[337699648,1725976249266,-590.4,0.00018695,2]
[337699649,1725976249275,-500.0,0.00018695,2]
[337699650,1725976249285,-798.61,0.00018695,2]
[337699651,1725976249295,-500.0,0.00018695,2]
[337699652,1725976249304,-500.0,0.00018695,2]
[337699653,1725976249314,-1592.89,0.00018695,2]
[337699654,1725976249325,-500.0,0.00018695,2]
[337699655,1725976249335,-624.15757867,0.00018696,2]
[337699656,1725976249345,-2248.04059674,0.00018735,2]
[337699657,1725976249356,-150.112235,0.000188,2]
[337699658,1725976249367,-150.112233,0.000188,2]
[337699659,1725976249376,-150.112233,0.000188,2]
[337699660,1725976249387,-150.112233,0.000188,2]
[337699661,1725976249396,-150.112233,0.000188,2]
[337699662,1725976249406,-150.112236,0.000188,2]
[337699663,1725976249416,-420.0,0.00018806,2]
[337699664,1725976249426,-2330.85,0.00018844,2]
[337699665,1725976249436,-5276.42,0.00018844,2]
[337699666,1725976249446,-1007.74,0.00018844,2]
[337699667,1725976249456,-1170.54,0.00018844,2]
[337699668,1725976249466,-1127.67,0.00018844,2]
[337699669,1725976249476,-961.92,0.00018844,2]
[337699670,1725976249485,-903.04,0.00018844,2]
[337699671,1725976249497,-500.0,0.00018863,2]
[337699672,1725976249508,-549.37920131,0.00018863,2]
[337699673,1725976249518,-500.0,0.00018863,2]
[337699674,1725976249528,-500.0,0.00018863,2]
[337699675,1725976249537,-500.0,0.00018863,2]
[337699676,1725976249548,-500.0,0.00018863,2]
[337699677,1725976249557,-506.34624746,0.00018863,2]
[337699678,1725976249567,-500.0,0.00018863,2]
[337699679,1725976249580,-500.0,0.00018863,2]
[337699680,1725976249589,-500.0,0.00018863,2]
[337699681,1725976249599,-500.0,0.00018863,2]
[337699682,1725976249608,-500.0,0.00018863,2]
[337699683,1725976249618,-500.0,0.00018863,2]
[337699684,1725976249628,-503.61405959,0.00018863,2]
[337699685,1725976249639,-500.0,0.00018863,2]
[337699686,1725976249649,-500.0,0.00018863,2]
[337699687,1725976249658,-500.0,0.00018863,2]
[337699688,1725976249669,-549.27,0.00018863,2]
[337699689,1725976249679,-500.0,0.00018863,2]
[337699690,1725976249688,-500.0,0.00018863,2]
[337699691,1725976249698,-500.0,0.00018863,2]
[337699692,1725976249708,-1153.6,0.00018863,2]
[337699693,1725976249718,-278.16,0.00018863,2]
[337699694,1725976249727,-500.0,0.00018863,2]
[337699695,1725976249743,-500.0,0.00018863,2]
[337699696,1725976249753,-4306.19,0.00018863,2]
[337699697,1725976249763,-7606.82,0.00018863,2]
[337699698,1725976249772,-500.0,0.00018863,2]
[337699699,1725976249783,-502.26,0.00018863,2]
[337699700,1725976249792,-500.0,0.00018863,2]
[337699701,1725976249803,-972.5,0.00018863,2]
[337699702,1725976249813,-516.99331206,0.00018863,2]
[337699703,1725976249827,-500.0,0.00018863,2]
[337699704,1725976249843,-3973.83,0.00018863,2]
[337699705,1725976249852,-278.25384775,0.00018863,2]
[337699706,1725976249862,-1276.65,0.00018863,2]
[337699707,1725976249872,-500.0,0.00018863,2]
[337699708,1725976249881,-1460.35,0.00018863,2]
[337699709,1725976249892,-500.0,0.00018863,2]
[337699710,1725976249901,-500.0,0.00018863,2]
[337699711,1725976249912,-500.0,0.00018863,2]
[337699712,1725976249922,-500.0,0.00018863,2]
[337699713,1725976249931,-1486.84,0.00018863,2]
[337699714,1725976249941,-500.0,0.00018863,2]
[337699715,1725976249951,-500.0,0.00018863,2]
[337699716,1725976249960,-500.0,0.00018863,2]
[337699717,1725976249970,-761.34,0.00018863,2]
[337699718,1725976249980,-583.93,0.00018863,2]
[337699719,1725976249990,-500.0,0.00018863,2]
[337699720,1725976250001,-500.0,0.00018863,2]
[337699721,1725976250011,-500.0,0.00018863,2]
[337699722,1725976250020,-732.5,0.00018863,2]
[337699723,1725976250030,-500.0,0.00018863,2]
[337699724,1725976250040,-1689.06,0.00018863,2]
[337699725,1725976250050,-533.10678046,0.00018863,2]
[337699726,1725976250060,-191.57543814,0.00018863,2]
[337699727,1725976250072,-612.99,0.00018863,2]
[337699728,1725976250082,-177.45995214,0.00018863,2]
[337699729,1725976250092,-1506.18,0.00018863,2]
[337699730,1725976250102,-500.0,0.00018863,2]
[337699731,1725976250112,-421.5997197,0.00018863,2]
[337699732,1725976250122,-500.0,0.00018863,2]
[337699733,1725976250132,-500.0,0.00018863,2]
[337699734,1725976250142,-500.0,0.00018863,2]
[337699735,1725976250152,-500.0,0.00018863,2]
[337699736,1725976250163,-570.72,0.00018863,2]
[337699737,1725976250173,-500.0,0.00018863,2]
[337699738,1725976250183,-720.73,0.00018863,2]
[337699739,1725976250193,-658.77,0.00018863,2]
[337699740,1725976250202,-500.0,0.00018863,2]
[337699741,1725976250212,-500.0,0.00018863,2]
[337699742,1725976250222,-500.0,0.00018863,2]
[337699743,1725976250231,-500.0,0.00018863,2]
[337699744,1725976250240,-500.0,0.00018863,2]
[337699745,1725976250251,-500.0,0.00018863,2]
[337699746,1725976250260,-500.0,0.00018863,2]
[337699747,1725976250271,-500.0,0.00018863,2]
[337699748,1725976250281,-500.0,0.00018863,2]
[337699749,1725976250291,-1225.8,0.00018863,2]
[337699750,1725976250300,-500.0,0.00018863,2]
[337699751,1725976250310,-500.0,0.00018863,2]
[337699752,1725976250321,-53101.07,0.00018863,2]
[337699753,1725976250330,-1890.07,0.00018863,2]
[337699754,1725976250340,-500.0,0.00018863,2]
[337699755,1725976250350,-500.0,0.00018863,2]
[337699756,1725976250364,-505.87537366,0.00018863,2]
[337699757,1725976250374,-2334.75,0.00018863,2]
[337699758,1725976250383,-500.0,0.00018863,2]
[337699759,1725976250393,-150.112233,0.000189,2]
[337699760,1725976250402,-150.112233,0.000189,2]
[337699761,1725976250412,-150.112237,0.000189,2]
[337699762,1725976250422,-500.0,0.00018945,2]
[337699763,1725976250431,-500.0,0.00018945,2]
[337699764,1725976250441,-500.0,0.00018945,2]
[337699765,1725976250451,-500.0,0.00018945,2]
[337699766,1725976250460,-500.0,0.00018945,2]
[337699767,1725976250470,-1255.72,0.00018945,2]
[337699768,1725976250481,-500.0,0.00018945,2]
[337699769,1725976250492,-645.18,0.00018945,2]
[337699770,1725976250504,-500.0,0.00018945,2]
[337699771,1725976250515,-500.0,0.00018945,2]
[337699772,1725976250527,-532.84,0.00018945,2]
[337699773,1725976250538,-500.0,0.00018945,2]
[337699774,1725976250548,-1498.78,0.00018945,2]
[337699775,1725976250559,-500.0,0.00018945,2]
[337699776,1725976250570,-500.0,0.00018945,2]
[337699777,1725976250580,-1432.3,0.00018945,2]
[337699778,1725976250590,-500.0,0.00018945,2]
[337699779,1725976250600,-500.0,0.00018945,2]
[337699780,1725976250609,-501.72,0.00018945,2]
[337699781,1725976250619,-2341.06,0.00018945,2]
[337699782,1725976250630,-500.0,0.00018945,2]
[337699783,1725976250641,-1072.81,0.00018945,2]
[337699784,1725976250651,-188.38496435,0.00018945,2]
[337699785,1725976250662,-1013.82,0.00018945,2]
[337699786,1725976250672,-509.33945968,0.00018945,2]
[337699787,1725976250681,-500.0,0.00018945,2]
[337699788,1725976250691,-664.51,0.00018945,2]
[337699789,1725976250700,-1720.84,0.00018945,2]
[337699790,1725976250710,-985.16,0.00018945,2]
[337699791,1725976250720,-505.4596711,0.00018945,2]
[337699792,1725976250729,-500.0,0.00018945,2]
[337699793,1725976250739,-617.24,0.00018945,2]
[337699794,1725976250750,-534.3982824,0.00018945,2]
[337699795,1725976250759,-847.0,0.00018945,2]
[337699796,1725976250769,-500.0,0.00018945,2]
[337699797,1725976250779,-818.73,0.00018945,2]
[337699798,1725976250788,-1644.85,0.00018945,2]
[337699799,1725976250798,-500.0,0.00018945,2]
[337699800,1725976250808,-4462.87,0.00018945,2]
[337699801,1725976250820,-500.0,0.00018945,2]
[337699802,1725976250829,-500.0,0.00018945,2]
[337699803,1725976250839,-500.0,0.00018945,2]
[337699804,1725976250848,-959.05,0.00018945,2]
[337699805,1725976250858,-1589.59,0.00018945,2]
[337699806,1725976250869,-500.0,0.00018945,2]
[337699807,1725976250878,-500.0,0.00018945,2]
[337699808,1725976250888,-2076.33,0.00018945,2]
[337699809,1725976250897,-500.0,0.00018945,2]
[337699810,1725976250907,-500.0,0.00018945,2]
[337699811,1725976250916,-3470.69,0.00018945,2]
[337699812,1725976250926,-708.86,0.00018945,2]
[337699813,1725976250936,-500.0,0.00018945,2]
[337699814,1725976250946,-1058.33,0.00018945,2]
[337699815,1725976250956,-500.0,0.00018945,2]
[337699816,1725976250966,-504.63005103,0.00018945,2]
[337699817,1725976250975,-500.0,0.00018945,2]
[337699818,1725976250985,-2034.81,0.00018945,2]
[337699819,1725976250995,-4565.46,0.00018945,2]
[337699820,1725976251004,-500.0,0.00018945,2]
[337699821,1725976251014,-1077.97,0.00018945,2]
[337699822,1725976251024,-1571.36,0.00018945,2]
[337699823,1725976251034,-500.0,0.00018945,2]
[337699824,1725976251044,-621.35,0.00018945,2]
[337699825,1725976251053,-3511.98,0.00018945,2]
[337699826,1725976251063,-589.46,0.00018945,2]
[337699827,1725976251076,-1849.39,0.00018945,2]
[337699828,1725976251088,-500.0,0.00018945,2]
[337699829,1725976251097,-789.46,0.00018945,2]
[337699830,1725976251107,-1738.8,0.00018945,2]
[337699831,1725976251117,-500.0,0.00018945,2]
[337699832,1725976251126,-503.94,0.00018945,2]
[337699833,1725976251136,-667.27,0.00018945,2]
[337699834,1725976251147,-500.0,0.00018945,2]
[337699835,1725976251156,-500.0,0.00018945,2]
[337699836,1725976251165,-500.0,0.00018945,2]
[337699837,1725976251175,-833.59,0.00018945,2]
[337699838,1725976251185,-701.54,0.00018945,2]
[337699839,1725976251197,-500.0,0.00018945,2]
[337699840,1725976251207,-41369.73,0.00018945,2]
[337699841,1725976251360,-500.0,0.00018945,2]
[337699842,1725976251371,-1029.38,0.00018945,2]
[337699843,1725976251380,-500.0,0.00018945,2]
[337699844,1725976251389,-500.0,0.00018945,2]
[337699845,1725976251399,-751.39,0.00018945,2]
[337699846,1725976251407,-553.37,0.00018945,2]
[337699847,1725976251416,-500.0,0.00018945,2]
[337699848,1725976251425,-500.0,0.00018945,2]
[337699849,1725976251434,-500.0,0.00018945,2]
[337699850,1725976251443,-500.0,0.00018945,2]
[337699851,1725976251452,-956.02,0.00018945,2]
[337699852,1725976251461,-6258.42,0.00018946,2]
[337699853,1725976251470,-753.3,0.00018946,2]
[337699854,1725976251480,-2069.06,0.00018946,2]
[337699855,1725976251489,-500.0,0.00018946,2]
[337699856,1725976251501,-1429.11,0.00018946,2]
[337699857,1725976251510,-2096.69,0.00018946,2]
[337699858,1725976251520,-4274.12,0.00018946,2]
[337699859,1725976251530,-852.66,0.00018946,2]
[337699860,1725976251539,-500.0,0.00018946,2]
[337699861,1725976251549,-1568.08,0.00018946,2]
[337699862,1725976251559,-700.72,0.00018946,2]
[337699863,1725976251571,-1293.67,0.00018946,2]
[337699864,1725976251582,-1430.43,0.00018946,2]
[337699865,1725976251592,-500.0,0.0001896,2]
[337699866,1725976251601,-500.0,0.0001896,2]
[337699867,1725976251611,-500.0,0.0001896,2]
[337699868,1725976251621,-561.11,0.0001896,2]
[337699869,1725976251630,-500.0,0.0001896,2]
[337699870,1725976251639,-72041.91,0.00018964,2]
[337699871,1725976251650,-666.75,0.00018964,2]
[337699872,1725976251659,-500.0,0.00018964,2]
[337699873,1725976251668,-500.0,0.00018965,2]
[337699874,1725976251678,-500.0,0.00018965,2]
[337699875,1725976251686,-500.0,0.00018965,2]
[337699876,1725976251697,-1495.54,0.00018965,2]
[337699877,1725976251707,-500.0,0.00018965,2]
[337699878,1725976251718,-690.99,0.00018965,2]
[337699879,1725976251728,-500.0,0.00018965,2]
[337699880,1725976251738,-500.0,0.00018965,2]
[337699881,1725976251749,-500.0,0.00018965,2]
[337699882,1725976251760,-483.53592386,0.00018965,2]
[337699883,1725976251769,-505.76296098,0.00018965,2]
[337699884,1725976251779,-500.0,0.00018965,2]
[337699885,1725976251790,-500.0,0.00018965,2]
[337699886,1725976251799,-511.04696333,0.00018965,2]
[337699887,1725976251808,-500.0,0.00018965,2]
[337699888,1725976251818,-500.0,0.00018965,2]
[337699889,1725976251828,-500.0,0.00018965,2]
[337699890,1725976251837,-500.0,0.00018965,2]
[337699891,1725976251846,-433.81708806,0.00018965,2]
[337699892,1725976251856,-500.0,0.00018965,2]
[337699893,1725976251865,-809.77,0.00018965,2]
[337699894,1725976251875,-500.0,0.00018965,2]